fUST/lending_fUST_20251230
["ID","MTS","AMOUNT","RATE_DAILY","PERIOD"]
[400026024,1767036641048,-438.91001104,0.00023012,2]
[400026025,1767036641059,-500.0,0.00023012,2]
[400026026,1767036641068,-500.0,0.00023012,2]
[400026027,1767036641079,-256.964808,0.00023012,2]
[400026028,1767036641089,-7629.338496,0.00023012,2]
[400026029,1767036641098,-427.64161233,0.00023012,2]
[400026030,1767036641109,-500.0,0.00023012,2]
[400026031,1767036641117,-500.0,0.00023012,2]
[400026032,1767036641127,-355.06711702,0.00023012,2]
[400026033,1767036641137,-461.32492869,0.00023012,2]
[400026034,1767036641147,-491.44374409,0.00023012,2]
[400026035,1767036641156,-351.74831702,0.00023012,2]
[400026036,1767036641165,-386.69760475,0.00023012,2]
[400026037,1767036641174,-408.04164553,0.00023012,2]
[400026038,1767036641184,-359.90731785,0.00023012,2]
[400026039,1767036641193,-500.0,0.00023012,2]
[400026040,1767036641204,-382.15781125,0.00023012,2]
[400026041,1767036641214,-506.77058064,0.00023012,2]
[400026042,1767036641224,-500.0,0.00023012,2]
[400026043,1767036641233,-881.47,0.00023012,2]
[400026044,1767036641244,-500.0,0.00023012,2]
[400026045,1767036641254,-500.0,0.00023012,2]
[400026046,1767036641264,-500.0,0.00023012,2]
[400026047,1767036641273,-5250.94,0.00023013,2]
[400026048,1767036641283,-702.54,0.00023013,2]
[400026049,1767036641293,-977.16,0.00023013,2]
[400026050,1767036641303,-1005.44,0.00023013,2]
[400026051,1767036641312,-215.0,0.00023014,7]
[400026052,1767036641322,-500.0,0.00023026,2]
[400026053,1767036641331,-2000.0,0.00023077,7]
[400026054,1767036641340,-9772.99,0.00023177,3]
[400026055,1767036641350,-151.0,0.000232,7]
[400026056,1767036641360,-506.27455527,0.00023247,2]
[400026057,1767036641370,-500.0,0.00023286,2]
[400026058,1767036641380,-500.0,0.00023286,2]
[400026059,1767036641391,-500.0,0.00023286,2]
[400026060,1767036641401,-500.0,0.00023286,2]
[400026061,1767036641410,-500.0,0.00023286,2]
[400026062,1767036641420,-826.13,0.00023286,2]
[400026063,1767036641430,-500.0,0.00023286,2]
[400026064,1767036641439,-189.36,0.00023286,2]
[400026065,1767036641448,-500.0,0.00023286,2]
[400026066,1767036641458,-500.0,0.00023286,2]
[400026067,1767036641467,-500.0,0.00023286,2]
[400026068,1767036641477,-500.0,0.00023286,2]
[400026069,1767036641487,-500.0,0.00023286,2]
[400026070,1767036641497,-500.0,0.00023286,2]
[400026071,1767036641506,-881.47,0.00023286,2]
[400026072,1767036641516,-500.0,0.00023286,2]
[400026073,1767036641525,-500.0,0.00023286,2]
[400026074,1767036641535,-500.0,0.00023286,2]
[400026075,1767036641544,-5250.94,0.00023287,2]
[400026076,1767036641554,-702.54,0.00023287,2]
[400026077,1767036641565,-977.16,0.00023287,2]
[400026078,1767036641578,-1005.44,0.00023287,2]
[400026079,1767036641590,-228.1,0.00023298,2]
[400026080,1767036641603,-500.0,0.00023307,2]
[400026081,1767036641615,-500.0,0.00023364,2]
[400026082,1767036641628,-285.0,0.00023383,2]
[400026083,1767036641638,-13696.17441862,0.000234,3]
[400026084,1767036641650,-514.84070869,0.00023406,2]
[400026085,1767036641661,-2487.15318209,0.00023406,2]
[400026086,1767036641674,-2160.0,0.00023477,2]
[400026087,1767036641685,-627.0,0.00023477,2]
[400026088,1767036641696,-1361.0,0.00023477,2]
[400026089,1767036641708,-416.0,0.00023477,2]
[400026090,1767036641719,-500.0,0.0002356,2]
[400026091,1767036641731,-500.0,0.0002356,2]
[400026092,1767036641743,-155.7364656,0.0002356,2]
[400026093,1767036641754,-500.0,0.0002356,2]
[400026094,1767036641765,-500.0,0.0002356,2]
[400026095,1767036641776,-826.13,0.0002356,2]
[400026096,1767036641788,-500.0,0.0002356,2]
[400026097,1767036641801,-500.0,0.0002356,2]
[400026098,1767036641814,-500.0,0.0002356,2]
[400026099,1767036641825,-500.0,0.0002356,2]
[400026100,1767036641836,-500.0,0.0002356,2]
[400026101,1767036641849,-881.47,0.0002356,2]
[400026102,1767036641860,-500.0,0.0002356,2]
[400026103,1767036641874,-498.10670326,0.0002356,2]
[400026104,1767036641886,-500.0,0.0002356,2]
[400026105,1767036641899,-5250.94,0.00023561,2]
[400026106,1767036641911,-702.54,0.00023561,2]
[400026107,1767036641924,-977.16,0.00023561,2]
[400026108,1767036641936,-1005.44,0.00023561,2]
[400026109,1767036641946,-412.0,0.00023592,2]
[400026110,1767036641958,-2474.32440527,0.00023659,2]
[400026111,1767036641967,-168.0,0.00023668,2]
[400026112,1767036641979,-1357.96,0.000237,7]
[400026113,1767036641989,-9772.99,0.000237,3]
[400026114,1767036642000,-412.0,0.00023752,2]
[400026115,1767036642013,-167440.33404103,0.0002376,2]
[400026116,1767036642030,-517.42876019,0.0002376,2]
[400026117,1767036642043,-356.01301693,0.0002376,2]
[400026118,1767036642089,-263.47373267,0.00019376,2]
[400026119,1767036642104,-71.52626733,0.00019376,2]
[400026120,1767036642116,-429.0,0.00019556,2]
[400026121,1767036642127,-11412.28028712,0.0002376,2]
[400026122,1767036642141,-871.20389835,0.0002376,2]
[400026123,1767036642155,-272.71,0.0002376,2]
[400026124,1767036642167,-48748.21300782,0.0002376,2]
[400026125,1767036642178,-672.86509108,0.0002376,2]
[400026132,1767036644725,-350.0,0.00019773,2]
[400026133,1767036644738,-27.95093046,0.00021917,2]
[400026134,1767036644751,-472.04906954,0.00021917,2]
[400026135,1767036644761,-500.0,0.00022191,2]
[400026136,1767036644774,-500.0,0.00022465,2]
[400026137,1767036644787,-579.62117618,0.00023013,2]
[400026145,1767036646549,-1489.69857777,0.00023013,2]
[400026146,1767036646560,-2069.31975395,0.00023287,2]
[400026147,1767036646570,-2069.31975395,0.00023561,2]
[400026148,1767036646582,-197649.73603735,0.0002376,2]
[400026149,1767036646595,-381.0,0.0002376,2]
[400026154,1767037236958,150.0,0.00012021,2]
[400026589,1767037302262,150.0,0.00010515,2]
[400026590,1767037302679,150.0,0.00011016,2]
[400026591,1767037303080,150.0,0.00011516,2]
[400026592,1767037303489,150.0,0.00012017,2]
[400026593,1767037303897,150.0,0.00012518,2]
[400026594,1767037304282,150.0,0.00013018,2]
[400028088,1767037711046,492.8613416,0.00013113,2]
[400028102,1767037832398,-278.28478349,0.00013217,2]
[400028103,1767037832610,-221.71521651,0.00013217,2]
[400028104,1767037832621,-195.44981767,0.00013217,2]
[400028105,1767037832653,-104.61589492,0.00013217,2]
[400028106,1767037832662,-500.0,0.00013217,2]
[400028107,1767037832672,-473.4732665,0.00013217,2]
[400028130,1767037838590,-26.5267335,0.00013217,2]
[400028132,1767037838601,-500.0,0.00013217,2]
[400028134,1767037838612,-500.0,0.00013217,2]
[400028136,1767037838622,-500.0,0.00013217,2]
[400028138,1767037838633,-500.0,0.00013217,2]
[400028140,1767037838643,-500.0,0.00013217,2]
[400028142,1767037838656,-500.0,0.00013217,2]
[400028144,1767037838665,-500.0,0.00013217,2]
[400028146,1767037838675,-500.0,0.00013217,2]
[400028148,1767037838684,-500.0,0.00013217,2]
[400028150,1767037838695,-500.0,0.00013217,2]
[400028152,1767037838704,-500.0,0.00013217,2]
[400028154,1767037838713,-500.0,0.00013217,2]
[400028156,1767037838723,-399.87219339,0.00013217,2]
[400028158,1767037838734,-500.0,0.00013217,2]
[400028159,1767037838745,-500.0,0.00013217,2]
[400028161,1767037838755,-500.0,0.00013217,2]
[400028163,1767037838764,-500.0,0.00013217,2]
[400028164,1767037838774,-500.0,0.00013217,2]
[400028165,1767037838783,-500.0,0.00013217,2]
[400028166,1767037838793,-201.41406797,0.00013217,2]
[400028167,1767037838803,-500.0,0.00013217,2]
[400028168,1767037838812,-500.0,0.00013217,2]
[400028169,1767037838822,-500.0,0.00013217,2]
[400028170,1767037838832,-500.0,0.00013217,2]
[400028171,1767037838841,-500.0,0.00013217,2]
[400028172,1767037838851,-500.0,0.00013217,2]
[400028173,1767037838862,-500.0,0.00013217,2]
[400028174,1767037838872,-500.0,0.00013217,2]
[400028175,1767037838882,-500.0,0.00013217,2]
[400028176,1767037838892,-500.0,0.00013217,2]
[400028177,1767037838903,-500.0,0.00013217,2]
[400028178,1767037838913,-500.0,0.00013217,2]
[400028179,1767037838924,-500.0,0.00013217,2]
[400028180,1767037838934,-500.0,0.00013217,2]
[400028181,1767037838944,-500.0,0.00013217,2]
[400028182,1767037838954,-500.0,0.00013217,2]
[400028183,1767037838964,-500.0,0.00013217,2]
[400028184,1767037838974,-500.0,0.00013217,2]
[400028185,1767037838984,-300.0,0.00013217,2]
[400028186,1767037838994,-300.0,0.00013217,2]
[400028187,1767037839003,-500.0,0.00013218,2]
[400028188,1767037839013,-500.0,0.00013218,2]
[400028189,1767037839023,-500.0,0.00013218,2]
[400028190,1767037839033,-500.0,0.00013218,2]
[400028191,1767037839043,-500.0,0.00013218,2]
[400028192,1767037839055,-500.0,0.00013218,2]
[400028193,1767037839064,-500.0,0.00013218,2]
[400028194,1767037839073,-416.66972749,0.00013218,2]
[400028195,1767037839083,-437.08403332,0.00013218,2]
[400028196,1767037839092,-500.0,0.00013218,2]
[400028197,1767037839104,-13898.36634284,0.00013218,2]
[400028198,1767037839116,-8608.96377406,0.00013219,2]
[400028199,1767037839128,-104797.74840514,0.00013219,2]
[400028200,1767037839139,-209.553771,0.00013699,2]
[400028201,1767037839150,-539.479231,0.00013699,2]
[400028202,1767037839159,-500.0,0.00013699,2]
[400028203,1767037839169,-500.0,0.00013699,2]
[400028204,1767037839178,-500.0,0.00013699,2]
[400028205,1767037839190,-1000.0,0.00014247,2]
[400028206,1767037839198,-1000.0,0.00014247,2]
[400028207,1767037839207,-1000.0,0.00014247,2]
[400028208,1767037839216,-500.0,0.00014471,2]
[400028209,1767037839226,-500.0,0.00014472,2]
[400028210,1767037839236,-1500.0,0.00014795,2]
[400028211,1767037839245,-1500.0,0.00014795,2]
[400028212,1767037839255,-172.54764,0.00015068,2]
[400028213,1767037839265,-2000.0,0.00015342,2]
[400028214,1767037839275,-469.43699751,0.0001589,2]
[400028215,1767037839284,-253.15086505,0.00015894,2]
[400028216,1767037839294,-232.81072439,0.00016266,2]
[400028217,1767037839303,-254.0908491,0.00016384,2]
[400028218,1767037839312,-500.0,0.00016437,2]
[400028219,1767037839321,-500.0,0.00016438,2]
[400028220,1767037839330,-500.0,0.00016438,2]
[400028221,1767037839339,-500.0,0.00016438,2]
[400028222,1767037839349,-500.0,0.00016438,2]
[400028223,1767037839358,-500.0,0.00016438,2]
[400028224,1767037839367,-500.0,0.00016438,2]
[400028225,1767037839376,-500.0,0.00016438,2]
[400028226,1767037839387,-500.0,0.00016438,2]
[400028227,1767037839398,-500.0,0.00016438,2]
[400028228,1767037839408,-500.0,0.00016438,2]
[400028229,1767037839417,-500.0,0.00016438,2]
[400028230,1767037839427,-500.0,0.00016438,2]
[400028231,1767037839436,-500.0,0.00016438,2]
[400028232,1767037839446,-500.0,0.00016438,2]
[400028233,1767037839455,-500.0,0.00016438,2]
[400028234,1767037839465,-500.0,0.00016438,2]
[400028235,1767037839475,-500.0,0.00016438,2]
[400028236,1767037839485,-500.0,0.00016438,2]
[400028237,1767037839494,-500.0,0.00016438,2]
[400028238,1767037839504,-500.0,0.00016438,2]
[400028239,1767037839513,-500.0,0.00016438,2]
[400028240,1767037839523,-500.0,0.00016438,2]
[400028241,1767037839532,-190.41713225,0.00016438,2]
[400028242,1767037839541,-500.0,0.00016438,2]
[400028243,1767037839552,-608.680753,0.00017014,2]
[400028244,1767037839562,-1041.66666667,0.00019058,2]
[400028245,1767037839571,-218.4,0.00019458,2]
[400028246,1767037839580,-163.17,0.000195,2]
[400028247,1767037839589,-157.43,0.000195,2]
[400028248,1767037839598,-164.0,0.00019753,3]
[400028249,1767037839607,-539.479231,0.00020187,2]
[400028250,1767037839616,-566.64364994,0.00020234,2]
[400028251,1767037839626,-218.4,0.00020235,2]
[400028252,1767037839636,-209.553771,0.00020548,2]
[400028253,1767037839646,-232.81072439,0.00020582,2]
[400028254,1767037839657,-1165.93377487,0.00020774,2]
[400028255,1767037839666,-218.4,0.00021011,2]
[400028256,1767037839675,-608.680753,0.00021143,2]
[400028257,1767037839685,-218.4,0.00021788,2]
[400028258,1767037839694,-500.0,0.00021843,2]
[400028259,1767037839703,-500.0,0.00021917,2]
[400028260,1767037839712,-500.0,0.00021917,2]
[400028261,1767037839721,-500.0,0.00021917,2]
[400028262,1767037839731,-1000.0,0.00021917,2]
[400028263,1767037839740,-500.0,0.00021917,2]
[400028264,1767037839749,-500.0,0.00021917,2]
[400028265,1767037839758,-500.0,0.00021917,2]
[400028266,1767037839768,-208.25775335,0.00021917,2]
[400028267,1767037839777,-427.64161233,0.00021917,2]
[400028268,1767037839787,-150.0,0.00021917,2]
[400028269,1767037839796,-500.0,0.00021917,2]
[400028270,1767037839804,-351.74831702,0.00021917,2]
[400028271,1767037839814,-500.0,0.00021917,2]
[400028272,1767037839823,-359.90731785,0.00021917,2]
[400028273,1767037839832,-286.81530226,0.00021917,2]
[400028274,1767037839841,-414.98358228,0.00021917,2]
[400028275,1767037839850,-355.06711702,0.00021917,2]
[400028276,1767037839860,-382.15781125,0.00021917,2]
[400028277,1767037839870,-491.44374409,0.00021917,2]
[400028278,1767037839879,-461.32492869,0.00021917,2]
[400028279,1767037839889,-500.0,0.00021917,2]
[400028280,1767037839899,-1034.82,0.00021917,2]
[400028281,1767037839908,-613.72905616,0.00021917,2]
[400028282,1767037839918,-386.69760475,0.00021917,2]
[400028283,1767037839927,-408.04164553,0.00021917,2]
[400028284,1767037839936,-500.0,0.00021917,2]
[400028285,1767037839946,-500.0,0.00021917,2]
[400028286,1767037839956,-438.91001104,0.00021917,2]
[400028287,1767037839966,-256.964808,0.00021917,2]
[400028288,1767037839975,-7629.338496,0.00021917,2]
[400028289,1767037839984,-197.8086957,0.00021917,2]
[400028290,1767037839993,-500.0,0.00021917,2]
[400028291,1767037840002,-500.0,0.00021917,2]
[400028292,1767037840012,-500.0,0.00021917,2]
[400028293,1767037840021,-500.0,0.00021917,2]
[400028294,1767037840031,-500.0,0.00021917,2]
[400028295,1767037840039,-500.0,0.00021917,2]
[400028296,1767037840049,-500.0,0.00021917,2]
[400028297,1767037840059,-510.00718018,0.00021917,2]
[400028298,1767037840068,-5534.04,0.00021917,2]
[400028299,1767037840077,-500.0,0.00021917,2]
[400028300,1767037840086,-445.55316345,0.00021917,2]
[400028301,1767037840095,-500.0,0.00021917,2]
[400028302,1767037840105,-500.0,0.00021917,2]
[400028303,1767037840115,-500.0,0.00021917,2]
[400028304,1767037840124,-543.12,0.00021917,2]
[400028305,1767037840133,-500.0,0.00021917,2]
[400028306,1767037840142,-422.86389252,0.00021917,2]
[400028307,1767037840153,-961.61,0.00021917,2]
[400028308,1767037840162,-500.0,0.00021917,2]
[400028309,1767037840171,-183.63537504,0.00021917,2]
[400028310,1767037840180,-500.0,0.00021917,2]
[400028311,1767037840191,-766.4,0.00021917,2]
[400028312,1767037840200,-500.0,0.00021917,2]
[400028313,1767037840209,-500.0,0.00021917,2]
[400028314,1767037840218,-500.0,0.00021917,2]
[400028316,1767037840228,-500.0,0.00021917,2]
[400028318,1767037840237,-500.0,0.00021917,2]
[400028320,1767037840246,-500.0,0.00021917,2]
[400028321,1767037840255,-1096.77,0.00021917,2]
[400028322,1767037840264,-500.0,0.00021917,2]
[400028324,1767037840274,-500.0,0.00021917,2]
[400028326,1767037840283,-681.08,0.00021917,2]
[400028328,1767037840291,-1065.99,0.00021917,2]
[400028329,1767037840300,-500.0,0.00021917,2]
[400028330,1767037840310,-1000.0,0.00021917,2]
[400028331,1767037840318,-500.0,0.00021966,2]
[400028333,1767037840327,-1508.85,0.00022,7]
[400028334,1767037840336,-1833.01,0.00022,14]
[400028335,1767037840345,-286.0,0.00022,2]
[400028336,1767037840354,-233.82194616,0.00022091,2]
[400028337,1767037840363,-500.0,0.00022106,2]
[400028338,1767037840372,-500.0,0.00022191,2]
[400028340,1767037840381,-500.0,0.00022191,2]
[400028341,1767037840390,-500.0,0.00022191,2]
[400028342,1767037840399,-1000.0,0.00022191,2]
[400028343,1767037840408,-500.0,0.00022191,2]
[400028344,1767037840417,-500.0,0.00022191,2]
[400028345,1767037840426,-500.0,0.00022191,2]
[400028346,1767037840436,-500.0,0.00022191,2]
[400028347,1767037840445,-500.0,0.00022191,2]
[400028348,1767037840455,-500.0,0.00022191,2]
[400028349,1767037840465,-1034.82,0.00022191,2]
[400028350,1767037840476,-500.0,0.00022191,2]
[400028351,1767037840487,-150.0,0.00022191,2]
[400028352,1767037840496,-528.70018131,0.00022191,2]
[400028353,1767037840505,-500.0,0.00022191,2]
[400028354,1767037840514,-500.0,0.00022191,2]
[400028355,1767037840524,-500.0,0.00022191,2]
[400028356,1767037840534,-500.0,0.00022191,2]
[400028358,1767037840543,-5534.04,0.00022191,2]
[400028360,1767037840553,-500.0,0.00022191,2]
[400028362,1767037840562,-500.0,0.00022191,2]
[400028364,1767037840571,-188.36476689,0.00022191,2]
[400028366,1767037840581,-500.0,0.00022191,2]
[400028368,1767037840590,-543.12,0.00022191,2]
[400028370,1767037840599,-500.0,0.00022191,2]
[400028372,1767037840609,-961.61,0.00022191,2]
[400028374,1767037840618,-500.0,0.00022191,2]
[400028376,1767037840627,-500.0,0.00022191,2]
[400028378,1767037840637,-766.4,0.00022191,2]
[400028380,1767037840646,-500.0,0.00022191,2]
[400028382,1767037840657,-255.67595508,0.00022191,2]
[400028384,1767037840666,-500.0,0.00022191,2]
[400028386,1767037840675,-500.0,0.00022191,2]
[400028388,1767037840684,-500.0,0.00022191,2]
[400028390,1767037840693,-500.0,0.00022191,2]
[400028392,1767037840702,-1096.77,0.00022191,2]
[400028393,1767037840711,-500.0,0.00022191,2]
[400028395,1767037840721,-500.0,0.00022191,2]
[400028396,1767037840730,-681.08,0.00022191,2]
[400028397,1767037840740,-1065.99,0.00022191,2]
[400028398,1767037840751,-500.0,0.00022191,2]
[400028399,1767037840761,-1000.0,0.00022191,2]
[400028400,1767037840770,-286.0,0.00022192,7]
[400028401,1767037840782,-500.0,0.00022323,2]
[400028402,1767037840792,-500.0,0.00022465,2]
[400028403,1767037840803,-500.0,0.00022465,2]
[400028404,1767037840812,-500.0,0.00022465,2]
[400028405,1767037840821,-1000.0,0.00022465,2]
[400028406,1767037840830,-500.0,0.00022465,2]
[400028407,1767037840839,-500.0,0.00022465,2]
[400028408,1767037840849,-500.0,0.00022465,2]
[400028409,1767037840859,-1034.82,0.00022465,2]
[400028410,1767037840868,-500.0,0.00022465,2]
[400028411,1767037840878,-584.07655682,0.00022465,2]
[400028412,1767037840889,-5534.04,0.00022465,2]
[400028413,1767037840897,-507.77725803,0.00022465,2]
[400028414,1767037840908,-500.0,0.00022465,2]
[400028415,1767037840917,-506.77058064,0.00022465,2]
[400028416,1767037840927,-543.12,0.00022465,2]
[400028417,1767037840935,-500.0,0.00022465,2]
[400028418,1767037840944,-961.61,0.00022465,2]
[400028419,1767037840954,-152.09411035,0.00022465,2]
[400028420,1767037840963,-500.0,0.00022465,2]
[400028421,1767037840973,-766.4,0.00022465,2]
[400028422,1767037840982,-500.0,0.00022465,2]
[400028423,1767037840991,-500.0,0.00022465,2]
[400028424,1767037841000,-500.0,0.00022465,2]
[400028425,1767037841010,-302.10028417,0.00022465,2]
[400028426,1767037841018,-500.0,0.00022465,2]
[400028427,1767037841028,-1096.77,0.00022465,2]
[400028428,1767037841037,-500.0,0.00022465,2]
[400028429,1767037841047,-500.0,0.00022465,2]
[400028430,1767037841056,-681.08,0.00022465,2]
[400028431,1767037841066,-1065.99,0.00022465,2]
[400028432,1767037841077,-289.38081341,0.00022465,2]
[400028433,1767037841086,-1000.0,0.00022465,2]
[400028434,1767037841095,-218.4,0.00022564,2]
[400028435,1767037841107,-10029.12,0.0002269,3]
[400028436,1767037841120,-500.0,0.00022739,2]
[400028437,1767037841129,-500.0,0.00022739,2]
[400028438,1767037841138,-500.0,0.00022739,2]
[400028439,1767037841147,-568.41416315,0.00022739,2]
[400028440,1767037841156,-500.0,0.00022739,2]
[400028441,1767037841165,-500.0,0.00022739,2]
[400028442,1767037841174,-500.0,0.00022739,2]
[400028443,1767037841185,-1034.82,0.00022739,2]
[400028444,1767037841194,-5534.04,0.00022739,2]
[400028445,1767037841203,-543.12,0.00022739,2]
[400028446,1767037841213,-500.0,0.00022739,2]
[400028447,1767037841223,-961.61,0.00022739,2]
[400028448,1767037841233,-152.09411035,0.00022739,2]
[400028449,1767037841352,-500.0,0.00022739,2]
[400028450,1767037841362,-766.4,0.00022739,2]
[400028451,1767037841372,-500.0,0.00022739,2]
[400028452,1767037841381,-500.0,0.00022739,2]
[400028453,1767037841391,-610.22451559,0.00022739,2]
[400028454,1767037841403,-500.0,0.00022739,2]
[400028455,1767037841412,-1096.77,0.00022739,2]
[400028456,1767037841421,-500.0,0.00022739,2]
[400028457,1767037841430,-500.0,0.00022739,2]
[400028458,1767037841440,-681.08,0.00022739,2]
[400028459,1767037841450,-1065.99,0.00022739,2]
[400028460,1767037841459,-500.0,0.00022797,2]
[400028461,1767037841469,-500.0,0.00022818,2]
[400028462,1767037841478,-500.0,0.00022818,2]
[400028463,1767037841487,-2398.4119403,0.00022818,2]
[400028464,1767037841497,-496.47127164,0.00022818,2]
[400028465,1767037841507,-500.0,0.00022831,2]
[400028466,1767037841516,-500.0,0.00022974,2]
[400028467,1767037841526,-21688.79131837,0.0002299,2]
[400028468,1767037841535,-500.0,0.00023013,2]
[400028469,1767037841544,-500.0,0.00023013,2]
[400028470,1767037841553,-500.0,0.00023013,2]
[400028471,1767037841564,-500.0,0.00023013,2]
[400028472,1767037841573,-500.0,0.00023013,2]
[400028473,1767037841583,-500.0,0.00023013,2]
[400028474,1767037841593,-1034.82,0.00023013,2]
[400028475,1767037841602,-5534.04,0.00023013,2]
[400028476,1767037841612,-543.12,0.00023013,2]
[400028477,1767037841621,-500.0,0.00023013,2]
[400028478,1767037841630,-961.61,0.00023013,2]
[400028479,1767037841640,-152.09411035,0.00023013,2]
[400028480,1767037841650,-500.0,0.00023013,2]
[400028481,1767037841662,-766.4,0.00023013,2]
[400028482,1767037841671,-500.0,0.00023013,2]
[400028483,1767037841682,-500.0,0.00023013,2]
[400028484,1767037841691,-500.0,0.00023013,2]
[400028485,1767037841701,-1096.77,0.00023013,2]
[400028486,1767037841710,-498.10670326,0.00023013,2]
[400028487,1767037841720,-500.0,0.00023013,2]
[400028488,1767037841729,-681.08,0.00023013,2]
[400028489,1767037841738,-1065.99,0.00023013,2]
[400028490,1767037841747,-286.0,0.00023014,7]
[400028491,1767037841756,-500.0,0.00023105,2]
[400028492,1767037841766,-500.0,0.0002311,2]
[400028493,1767037841776,-500.0,0.00023258,2]
[400028494,1767037841785,-500.0,0.00023287,2]
[400028495,1767037841795,-587.13463047,0.00023287,2]
[400028496,1767037841805,-500.0,0.00023287,2]
[400028497,1767037841814,-500.0,0.00023287,2]
[400028498,1767037841824,-500.0,0.00023287,2]
[400028499,1767037841833,-500.0,0.00023287,2]
[400028500,1767037841843,-1034.82,0.00023287,2]
[400028501,1767037841853,-5534.04,0.00023287,2]
[400028502,1767037841862,-543.12,0.00023287,2]
[400028503,1767037841871,-500.0,0.00023287,2]
[400028504,1767037841880,-961.61,0.00023287,2]
[400028505,1767037841890,-152.09411035,0.00023287,2]
[400028506,1767037841899,-766.4,0.00023287,2]
[400028507,1767037841909,-500.0,0.00023287,2]
[400028508,1767037841918,-500.0,0.00023287,2]
[400028509,1767037841928,-1096.77,0.00023287,2]
[400028510,1767037841938,-500.0,0.00023287,2]
[400028511,1767037841948,-681.08,0.00023287,2]
[400028512,1767037841958,-1065.99,0.00023287,2]
[400028513,1767037841968,-1833.01,0.000233,14]
[400028514,1767037841978,-218.4,0.00023341,2]
[400028515,1767037841987,-2487.15318209,0.00023366,2]
[400028516,1767037841997,-514.84070869,0.00023366,2]
[400028517,1767037842006,-639.0,0.00023387,2]
[400028518,1767037842016,-2164.0,0.00023387,2]
[400028519,1767037842025,-1364.0,0.00023387,2]
[400028520,1767037842035,-250.0,0.00023387,2]
[400028521,1767037842044,-416.0,0.00023387,2]
[400028522,1767037842055,-416.0,0.00023387,2]
[400028523,1767037842065,-1508.85,0.000234,7]
[400028524,1767037842075,-500.0,0.00023561,2]
[400028525,1767037842084,-189.36,0.00023561,2]
[400028526,1767037842093,-500.0,0.00023561,2]
[400028527,1767037842104,-500.0,0.00023561,2]
[400028528,1767037842115,-500.0,0.00023561,2]
[400028529,1767037842125,-1034.82,0.00023561,2]
[400028530,1767037842135,-5534.04,0.00023561,2]
[400028531,1767037842147,-543.12,0.00023561,2]
[400028532,1767037842159,-500.0,0.00023561,2]
[400028533,1767037842168,-961.61,0.00023561,2]
[400028534,1767037842177,-152.09411035,0.00023561,2]
[400028535,1767037842187,-766.4,0.00023561,2]
[400028536,1767037842198,-500.0,0.00023561,2]
[400028537,1767037842207,-500.0,0.00023561,2]
[400028538,1767037842217,-1096.77,0.00023561,2]
[400028539,1767037842226,-500.0,0.00023561,2]
[400028540,1767037842235,-681.08,0.00023561,2]
[400028541,1767037842245,-1065.99,0.00023561,2]
[400028542,1767037842255,-500.0,0.00023601,2]
[400028543,1767037842264,-2474.32440527,0.00023659,2]
[400028544,1767037842274,-10029.09,0.00023698,3]
[400028545,1767037842285,-700.9534263,0.00023729,2]